Cogmind - Beta 10.2 @@@ ROGUE MODE // 2021.03.30 @ 23:59:41 Player: Muffinmink Result: Destroyed by S-10 Pest with Light Assault Rifle Performance ------------- Evolutions (1) 500 Regions Visited (2) 400 Robots Destroyed (21) 105 Value Destroyed (360) 360 Prototype IDs (0) 0 Alien Tech Used (0) 0 Bonus (0) 0 TOTAL SCORE: 1365 Bonus ------- None Cogmind --------- Core Integrity 0/400 Matter 21/300 Energy 100/100 System Corruption 0% Temperature Cool (0) Movement Core (1100) Ox21 Location -9/Materials Parts ------- > --- POWER (2) -------- (None) > --- PROPULSION (2) --- (None) > --- UTILITY (3) ------ High-capacity Storage Unit High-capacity Storage Unit > --- WEAPON (2) ------- (None) > --- INVENTORY (20) --- Aluminum Leg Disposable Heat Sink Large Storage Unit Large Storage Unit High-capacity Battery (400) High-capacity Battery (400) Signal Interpreter Signal Interpreter Weapon Shielding EM Pulse Gun EM Pulse Gun Assault Rifle Heavy Assault Rifle Heavy Assault Rifle Grenade Launcher Datajack Peak State ------------ > --- POWER ------------ Light Ion Engine > --- PROPULSION ------- Light Treads Light Treads > --- UTILITY ---------- Cooling System High-capacity Storage Unit High-capacity Storage Unit > --- WEAPON ----------- Heavy Assault Rifle Grenade Launcher > --- INVENTORY -------- Aluminum Leg Aluminum Leg Disposable Heat Sink Large Storage Unit Large Storage Unit High-capacity Battery High-capacity Battery Signal Interpreter Signal Interpreter Weapon Shielding EM Pulse Gun EM Pulse Gun Assault Rifle Heavy Assault Rifle Heavy Assault Rifle Grenade Launcher Grenade Launcher Datajack [Rating: 12] Favorites ----------- Power Ion Engine Engine Ion Engine Propulsion Light Treads Treads Light Treads Leg Aluminum Leg Utility Large Storage Unit Device Cooling System Storage Large Storage Unit Weapon EM Pulse Gun Energy Gun EM Pulse Gun Ballistic Gun Assault Rifle Launcher Grenade Launcher Build | -11 -10 -9 ------- Run | Scr Mat Mat Slots Evolved 2 | . . 2 Power 1 | . . 1 Propulsion . | . . . Utility 1 | . . 1 Weapon . | . . . Parts Attached 20 | 6 8 6 Power 2 | 1 1 . Engine 2 | 1 1 . Core . | . . . Reactor . | . . . Propulsion 3 | 2 . 1 Treads 2 | 2 . . Leg 1 | . . 1 Wheel . | . . . Hover . | . . . Flight . | . . . Utility 7 | 1 4 2 Device 1 | . . 1 Storage 6 | 1 4 1 Processor . | . . . Hackware . | . . . Protection . | . . . Artifact . | . . . Weapon 8 | 2 3 3 Energy Gun 2 | 1 1 . Energy Cannon . | . . . Ballistic Gun 2 | 1 . 1 Ballistic Cannon . | . . . Launcher 4 | . 2 2 Special Weapon . | . . . Impact Weapon . | . . . Slashing Weapon . | . . . Piercing Weapon . | . . . Special Melee Weapon . | . . . Unidentified Prototypes . | . . . Parts Lost 8 | . . 8 Power 1 | . . 1 Propulsion 3 | . . 3 Utility 1 | . . 1 Weapon 3 | . . 3 Highest Loss Streak 8 | . . 8 Average Slot Usage (%) 90 | . 98 70 Engine 12 | . 14 7 Treads 23 | . 28 14 Device 2 | . . 8 Storage 25 | . 27 22 Energy Gun 11 | . 16 . Ballistic Gun 1 | . 1 2 Launcher 11 | . 10 13 Naked Turns . | . . . Heaviest Build 75 | 13 73 75 Greatest Support 40 | 40 40 40 Greatest Overweight (x) 21 | 2 1 21 Average Overweight (x) . | . . 1 Largest Inventory Capacity 20 | 6 20 20 Average Capacity 15 | 5 16 20 Most Carried 19 | 4 19 19 Average Carried 12 | 2 13 17 Final Capacity 20 | 6 20 20 Final Carried 19 | 3 19 16 Class Distribution -------------------- 63% | Mutant 36% | Hauler-Mutant Dominant Class ---------------- Mutant | -10/Materials Hauler-Mutant | -9/Materials Resources | -11 -10 -9 ----------- Run | Scr Mat Mat Matter Collected 299 | 186 113 . Remotely . | . . . Salvage Created 422 | . 142 280 Parts 32 | . 15 17 Haulers Intercepted . | . . . Recyclers Shooed . | . . . Parts Field Recycled . | . . . Retrieved Matter . | . . . Parts Self-Destructed . | . . . Prevented . | . . . Kills | -11 -10 -9 ------- Run | Scr Mat Mat Combat Hostiles Destroyed 13 | . 7 6 Guns 7 | . 5 2 AOE 6 | . 2 4 Classes Destroyed 8 | . 4 4 Worker 1 | . . 1 Builder 1 | . . 1 Recycler 1 | . . 1 Operator 1 | . 1 . Watcher 4 | . 1 3 Swarmer 9 | . 6 3 Grunt 2 | . 1 1 Sentry 2 | . . 2 Best Kill Streak 9 | . 3 9 Combat Bots Only 3 | . 3 3 Max Kills in Single Turn 3 | . 2 3 Gunslinging . | . . . Exploded 3 | . 1 3 Melee . | . . . Uniques/NPCs Destroyed . | . . . Combat | -11 -10 -9 -------- Run | Scr Mat Mat Damage Taken 1464 | . 150 1314 Core 400 | . . 400 Absorbed by Shields . | . . . Core Remaining (%) 100 | 100 100 . Volleys Fired 32 | . 11 21 Largest 2 | . 2 2 Hottest 80 | . 80 60 Shots Fired 48 | . 20 28 Gun 29 | . 16 13 Cannon . | . . . Launcher 19 | . 4 15 Special . | . . . Kinetic 13 | . . 13 Thermal . | . . . Explosive 19 | . 4 15 Electromagnetic 16 | . 16 . Robot Hit Streak 7 | . 4 7 Robot Miss Streak 2 | . 2 1 Penetration Max . | . . . Secondary Targets 2 | . 2 . Max Gunslinging Chain 1 | . 1 . Shots Hit Robots 23 | . 10 13 Core Hits 30 | . 10 20 Critical Hits 1 | . . 1 Critical Kills . | . . . Critical Parts Destroyed 1 | . . 1 Melee Attacks . | . . . Impact . | . . . Slashing . | . . . Piercing . | . . . Sneak Attacks . | . . . Combat Hostiles . | . . . Follow-up Attacks . | . . . Damage Inflicted 1000 | . 316 684 Guns 285 | . 111 174 Cannons . | . . . Explosions 708 | . 199 509 Melee . | . . . Ramming 7 | . 6 1 Kinetic 174 | . . 174 Thermal 42 | . 42 . Explosive 666 | . 157 509 Electromagnetic 111 | . 111 . Impact . | . . . Slashing . | . . . Piercing . | . . . Highest Corruption 1 | . 1 . Average Corruption 1 | . 1 . Corruption Purged . | . . . Overload Shots . | . . . Overflow Damage 24 | . . 24 Projectiles . | . . . Explosions 24 | . . 24 Melee . | . . . Knockbacks . | . . . Impact . | . . . Kinetic . | . . . Secondary . | . . . Self-Inflicted Damage 57 | . 57 . Shots 2 | . 2 . Rammed 3 | . 1 2 Targets Rammed 3 | . 1 2 Kicked . | . . . Crushed . | . . . Highest Temperature 66 | . 66 . Average Temperature 21 | . 21 . Received Heat Transfer 258 | . 18 240 Siege Activations . | . . . Robots Corrupted . | . . . Combat Hostiles . | . . . Parts Fried . | . . . Impact Corruptions . | . . . Robots Melted . | . . . Combat Hostiles . | . . . Parts Melted . | . . . Heat Transferred . | . . . Parts Sabotaged . | . . . Parts Stolen . | . . . Parts Stripped . | . . . Power Chain Reactions 1 | . 1 . Missiles Intercepted . | . . . Alert | -11 -10 -9 ------- Run | Scr Mat Mat Peak Influence 287 | . 287 247 Initial 36 | . . 36 Average 121 | . 157 127 Maximum Alert Level 1 | . 1 1 Low Security (%) 65 | 100 50 74 Level 1 34 | . 49 25 Level 2 . | . . . Level 3 . | . . . Level 4 . | . . . Level 5 . | . . . High Security . | . . . Max Security . | . . . Squads Dispatched 3 | . 2 1 Investigation 1 | . 1 . Extermination . | . . . Reinforcement 2 | . 1 1 Assault . | . . . Garrison . | . . . Intercept . | . . . Construction Impeded 1 | . . 1 Haulers Reinforced . | . . . Stealth | -11 -10 -9 --------- Run | Scr Mat Mat Distress Signals 2 | . 1 1 Communications Jammed . | . . . Distress Signals . | . . . Times Spotted 31 | . 14 17 Peak Tracking Total 9 | . 3 9 Tactical Retreats 5 | . 3 2 Traps | -11 -10 -9 ------- Run | Scr Mat Mat Traps Triggered . | . . . Indirectly . | . . . Trap Hack Attempts . | . . . Triggered . | . . . Disarmed . | . . . Reprogrammed . | . . . Reused . | . . . Traps Extracted . | . . . Installed . | . . . Triggered . | . . . Machines | -11 -10 -9 ---------- Run | Scr Mat Mat Machines Disabled 2 | . . 2 Max in Single Turn 1 | . . 1 Machines Sabotaged . | . . . Garrisons Compromised . | . . . Overloaded Fab Kills . | . . . Fab Network Shutdowns . | . . . Hacking | -11 -10 -9 --------- Run | Scr Mat Mat Machines Accessed 3 | . 1 2 Terminals 3 | . 1 2 Fabricators . | . . . Repair Stations . | . . . Recycling Units . | . . . Scanalyzers . | . . . Garrison Access . | . . . Total Hacks 7 | . 2 5 Successful 4 | . . 4 Failed 3 | . 2 1 Catastrophic 1 | . 1 . Database Lockouts . | . . . Manual . | . . . Terminals 7 | . 2 5 Fabricators . | . . . Repair Stations . | . . . Recycling Units . | . . . Scanalyzers . | . . . Garrison Access . | . . . Terminal Hacks 4 | . . 4 Record 1 | . . 1 Alert Level 2 | . . 2 Zone Layout 1 | . . 1 Fabricator Hacks . | . . . Repair Station Hacks . | . . . Recycling Unit Hacks . | . . . Scanalyzer . | . . . Garrison Access Hacks . | . . . Unauthorized Hacks . | . . . Terminals . | . . . Fabricators . | . . . Repair Stations . | . . . Recycling Units . | . . . Scanalyzers . | . . . Garrison Access . | . . . Data Cores Recovered . | . . . Used . | . . . Hacking Detections 1 | . 1 . Full Trace Events 1 | . 1 . Feedback Events 1 | . 1 . Corruption 1 | . 1 . Feedback Blocked . | . . . Robot Schematics Acquired . | . . . Robots Built . | . . . Matter . | . . . Time . | . . . Total Robot Build Rating . | . . . Part Schematics Acquired . | . . . Parts Built . | . . . Matter . | . . . Time . | . . . Total Part Build Rating . | . . . Parts Repaired . | . . . Time . | . . . Parts Recycled . | . . . Recycled Matter . | . . . Retrieved Matter . | . . . Retrieved Components . | . . . Parts Scanalyzed . | . . . Part Schematics Acquired . | . . . Parts Damaged . | . . . Bothacking | -11 -10 -9 ------------ Run | Scr Mat Mat Used RIF Installer . | . . . Robots Hacked . | . . . Non-combat . | . . . Combat . | . . . Robot Hacks Applied . | . . . Relay Couplers Released . | . . . Robots Rewired . | . . . Allies Hacked . | . . . Hacks Repelled . | . . . Allies | -11 -10 -9 -------- Run | Scr Mat Mat Total Allies . | . . . Largest Group . | . . . Highest-Rated Group . | . . . Highest-Rated Ally . | . . . Total Orders . | . . . Ally Attacks . | . . . Total Damage . | . . . Kills . | . . . Allies Corrupted . | . . . Allies Melted . | . . . Intel | -11 -10 -9 ------- Run | Scr Mat Mat Robot Analysis Total . | . . . Derelict Logs Recovered . | . . . Drone Launches . | . . . Drone Recoveries . | . . . Exploration | -11 -10 -9 ------------- Run | Scr Mat Mat Turns Passed 750 | 138 428 184 Spaces Moved 327 | 82 194 51 Core 29 | 28 . 1 Treads 294 | 54 194 46 Legs 4 | . . 4 Wheels . | . . . Hover . | . . . Flight . | . . . Fastest Speed 50 | 50 160 180 Average Speed 174 | 141 178 211 Slowest Speed 1100 | 160 180 1100 Overloaded Moves . | . . . Propulsion Burnouts . | . . . Robots Hopped . | . . . Cave-ins Triggered . | . . . Exploration Rate (%) 14 | 6 26 11 Regions Visited 2 Branch Regions . Pre-discovered Areas . | . . . Known Exits Taken . | . . . Unknown Exits Taken 2 | 1 1 . Scrap Searched . | . . . Spaces Dug . | . . . Terrain Destroyed 53 | . 20 33 Melee . | . . . Projectile . | . . . AOE 53 | . 20 33 Terrain Rammed . | . . . Walls Destroyed . | . . . Machines Disabled . | . . . Actions | -11 -10 -9 --------- Run | Scr Mat Mat Total 449 | 105 261 83 Wait 8 | 5 3 . Move 325 | 81 193 51 Hop . | . . . Pick Up 41 | 11 30 . Fast Attach . | . . . Attach 17 | 6 5 6 Detach 5 | . 2 3 Swap 3 | . 3 . Drop 15 | 2 13 . Fire 32 | . 11 21 Melee . | . . . Ram 2 | . . 2 Kick . | . . . Crush 1 | . 1 . Escape Stasis . | . . . Rewire . | . . . Trap . | . . . Miscellaneous . | . . . Route ------- -11/Scrapyard -10/Materials -9/Materials History --------- Turn | Location | Event 2 | -11/Scrapyard | Met Revision 17 16 | -11/Scrapyard | Discovered new exit (range 15) 139 | -11/Scrapyard | Entered Materials 308 | -10/Materials | Build established: Mutant 559 | -10/Materials | Discovered new exit (range 3) 567 | -10/Materials | Entered another Materials area 567 | -9/Materials | Evolved 2 slots: Power x1, Utility x1 716 | -9/Materials | Core integrity fell below 50% 731 | -9/Materials | Core integrity fell below 20% 751 | -9/Materials | Destroyed by S-10 Pest with Light Assault Rifle Last Messages --------------- 00712_ U-05 Engineer lays Concrete. 00713_ K-01 Serf collects debris. 00714_ U-05 Engineer lays Concrete. 00714_ R-06 Scavenger collects Wheel. 00715_ U-05 Engineer lays Concrete. 00715_ Cooling System destroyed. 00716_ K-01 Serf collects debris. 00717_ U-05 Engineer lays Concrete. 00719_ K-01 Serf collects debris. 00720_ U-05 Engineer lays Concrete. 00723_ K-01 Serf collects debris. 00724_ S-10 Pest destroyed. 00724_ R-06 Scavenger collects Lgt. Assault Rifle. 00724_ U-05 Engineer lays Concrete. 00726_ K-01 Serf collects debris. 00732_ Slammed into S-10 Pest. 00732_ K-01 Serf collects debris. 00743_ Slammed into S-10 Pest. 00744_ Aluminum Leg destroyed. 00746_ K-01 Serf collects debris. Map ----- +----------------------------------------------------+ | ?????????????????????????????????????????????????? | | ?????????????????????????????????????????????????? | | ????????????????????? ?????????????????????????? | | ????????????????????? ???????????????????????? | | ????????????????????? !!=????????????????????? | | ???????????????#????? !! /??????????????????? | | ?????????? ??# ???# !! #??????????????????? | | ????????# ?# #??# [ #??????????????????? | | ????????# ## ??# ???????????????????? | | ????????# =%=?? = ????????????????????? | | ????????# ##% #### ##% #????????????????????? | | ???????## %% ^^ % ##???????????????????? | | ???????# ^ %= #???????????????????? | | ????????# = [ #???????????????????? | | ????????# %%[ ?????????????????????? | | ????? # ##????????????????????? | | ???? % # ""???????????????? | | ???? + """""#?########??? | | ???? # """""#?# #??? | | ????????# ##+#### # """""#?# #??? | | ????????#### ? # # """""#?# #??? | | ???????????# ?? # # """""#?# #??? | | ???????????#??? ?# # #?# #??? | | ????????????? ??# ####s############ #??? | | ???????????? ???### #s # ###+####??? | | ???????????# ?????# # @ # #??? | | ???????????# [??????# # + #??? | | ???????????# ???????# # # """ #??? | | ???????????# ????????# # # """ ###??? | | ???????????# ????????# # # """ "##### | | ???????????#?????????# # # T# | | ?????????????????????? # k s # "# | | ?????????????????????? ########g## "T" ## | | ????????????????????# """ # | | ????????????????????# + | | ????????????????????# # | | ????????????????????# ############+####### # | | ????????????????????#? #??????# #??# # | | ?????????????????????? #??????# """#??# ##### | | ?????????????????????? #??????# """#??# #???? | | ?????????????????????? #??????# """#??# ####? | | ?????????????????????? #??????# #??# #? | | ?????????????????????? #??????# """#??# #? | | ??????????????????????###??????# """#??# #? | | ??????????????????????#######??# """#??# #? | | ?????????????????????? #??# #??# #? | | ?????????????????????? #??##########??# #? | | ?????????????????????? #??????######### #? | | ?????????????????????????????????????????????????? | | ?????????????????????????????????????????????????? | +----------------------------------------------------+ Best States ------------- Heat Dissipation 50 Energy Generation 10 Energy Capacity 250 Matter Stores 294 Matter Capacity 300 Sight Range 16 Terrain Scan Density 10 Evasion (%) 50 Recoil Reduction 2 Item Schematics ----------------- None Robot Schematics ------------------ None Fabricated ------------ Nothing Alien Tech Used ----------------- None Achievements -------------- Oops Challenges ------------ None Game ------ Seed TransmissionDeepBoomstick Manual? 0 Play Time 00:22:55 Cumulative 2.4 hours Start 2021.02.26 @ 17:42:31 End 2021.03.30 @ 23:59:41 Sessions 2 Manual Loads 0 Difficulty Rogue Special Mode None Game No. 10 Rogue 7 Adventurer 0 Explorer 3 Win Type - Total 0 Types 0/0/0/0/0/0/0/0/0 Lore% 2 Gallery% 5 Achievement% 5 Wizard Run 0 Options --------- ASCII 0 Keyboard 0 Movement Mouse Keybinds 0 Fullscreen 2 Font 18/SmallcapsGlow Map View 76x50 Tactical HUD 1 Map Filters NONE Filters NONE Steam 1 RUN: 6284cbe4-767b-4acd-ad60-1f32d2ebaba5